fUSD/lending_fUSD_20240329
["ID","MTS","AMOUNT","RATE_DAILY","PERIOD"]
[320992583,1711732258278,-500.0,0.00052602,120]
[320992584,1711732258288,-500.0,0.00052602,120]
[320992585,1711732258298,-3715.44,0.00052602,120]
[320992586,1711732258308,-500.0,0.00052602,120]
[320992587,1711732258318,-530.07768383,0.00052602,120]
[320992588,1711732258327,-500.0,0.00052602,120]
[320992589,1711732258337,-500.0,0.00052602,120]
[320992590,1711732258346,-4247.9,0.00052602,120]
[320992591,1711732258355,-892.02,0.00052602,120]
[320992592,1711732258365,-1042.94,0.00052602,120]
[320992593,1711732258375,-500.0,0.00052602,120]
[320992594,1711732258384,-500.0,0.00052602,120]
[320992595,1711732258394,-500.0,0.00052602,120]
[320992596,1711732258403,-1509.93,0.00052602,120]
[320992597,1711732258413,-830.5,0.00052602,120]
[320992598,1711732258423,-500.0,0.00052602,120]
[320992599,1711732258433,-500.0,0.00052602,120]
[320992600,1711732258443,-613.02,0.00052602,120]
[320992601,1711732258453,-1724.86,0.00052602,120]
[320992602,1711732258463,-500.0,0.00052602,120]
[320992603,1711732258473,-500.0,0.00052602,120]
[320992604,1711732258482,-500.0,0.00052602,120]
[320992605,1711732258492,-500.0,0.00052602,120]
[320992606,1711732258504,-905.36,0.00052602,120]
[320992607,1711732258513,-500.0,0.00052602,120]
[320992608,1711732258522,-623.53,0.00052602,120]
[320992609,1711732258532,-802.8,0.00052602,120]
[320992610,1711732258541,-543.31,0.00052602,120]
[320992611,1711732258550,-500.0,0.00052602,120]
[320992612,1711732258560,-534.61930809,0.00052602,120]
[320992613,1711732258569,-1090.75,0.00052602,120]
[320992614,1711732258578,-500.0,0.00052602,120]
[320992615,1711732258587,-746.52,0.00052602,120]
[320992616,1711732258597,-500.0,0.00052602,120]
[320992617,1711732258606,-826.13,0.00052602,120]
[320992618,1711732258616,-567.02,0.00052602,120]
[320992619,1711732258625,-500.0,0.00052602,120]
[320992620,1711732258635,-609.67,0.00052602,120]
[320992621,1711732258644,-500.0,0.00052602,120]
[320992622,1711732258654,-727.16,0.00052602,120]
[320992623,1711732258663,-524.42,0.00052602,120]
[320992624,1711732258673,-3533.95,0.00052602,120]
[320992625,1711732258683,-678.08,0.00052602,120]
[320992626,1711732258692,-1640.68,0.00052602,120]
[320992627,1711732258702,-599.54,0.00052602,120]
[320992628,1711732258712,-823.88,0.00052602,120]
[320992629,1711732258722,-746.65,0.00052602,120]
[320992630,1711732258731,-1247.6,0.00052602,120]
[320992631,1711732258741,-500.0,0.00052602,80]
[320992632,1711732258752,-2016.02,0.00052602,120]
[320992633,1711732258762,-610.76,0.00052602,120]
[320992634,1711732258771,-500.0,0.00052602,120]
[320992635,1711732258782,-1049.64,0.00052602,120]
[320992636,1711732258791,-562.09,0.00052602,120]
[320992637,1711732258802,-500.0,0.00052602,120]
[320992638,1711732258811,-842.24,0.00052602,120]
[320992639,1711732258821,-2897.64,0.00052602,120]
[320992640,1711732258830,-500.0,0.00052602,120]
[320992641,1711732258840,-637.97,0.00052602,120]
[320992642,1711732258850,-662.85,0.00052602,120]
[320992643,1711732258862,-500.0,0.00052602,120]
[320992644,1711732258873,-515.79,0.00052602,120]
[320992645,1711732258883,-500.0,0.00052602,120]
[320992646,1711732258893,-1329.88,0.00052602,120]
[320992647,1711732258903,-3024.4,0.00052602,120]
[320992648,1711732258913,-500.0,0.00052602,120]
[320992649,1711732258923,-897.89,0.00052602,120]
[320992650,1711732258932,-500.0,0.00052602,120]
[320992651,1711732258943,-1703.04,0.00052602,120]
[320992652,1711732258953,-500.0,0.00052602,120]
[320992653,1711732258963,-2522.14,0.00052602,120]
[320992654,1711732258973,-500.0,0.00052602,120]
[320992655,1711732258982,-5409.47,0.00052602,120]
[320992656,1711732258992,-500.0,0.00052602,120]
[320992657,1711732259002,-643.87,0.00052602,120]
[320992658,1711732259012,-1537.3,0.00052602,120]
[320992659,1711732259022,-500.0,0.00052602,120]
[320992660,1711732259031,-500.0,0.00052602,120]
[320992661,1711732259041,-1064.6,0.00052602,120]
[320992662,1711732259050,-500.0,0.00052602,120]
[320992663,1711732259060,-532.63,0.00052602,120]
[320992664,1711732259069,-500.0,0.00052602,120]
[320992665,1711732259078,-694.49,0.00052602,120]
[320992666,1711732259088,-1623.67,0.00052602,120]
[320992667,1711732259097,-862.3,0.00052602,120]
[320992668,1711732259106,-500.0,0.00052602,120]
[320992669,1711732259116,-3565.13,0.00052602,120]
[320992670,1711732259127,-500.0,0.00052602,60]
[320992671,1711732259136,-2312.51,0.00052602,120]
[320992672,1711732259146,-1378.2,0.00052602,120]
[320992673,1711732259155,-2825.19,0.00052602,120]
[320992674,1711732259165,-509.83,0.00052602,120]
[320992675,1711732259175,-1908.96,0.00052602,120]
[320992676,1711732259184,-500.0,0.00052602,120]
[320992677,1711732259194,-500.0,0.00052602,120]
[320992678,1711732259203,-3067.75,0.00052602,120]
[320992679,1711732259213,-1505.23,0.00052602,120]
[320992680,1711732259223,-500.0,0.00052602,120]
[320992681,1711732259233,-693.2,0.00052602,120]
[320992682,1711732259243,-618.84,0.00052602,120]
[320992683,1711732259254,-500.0,0.00052602,120]
[320992684,1711732259263,-500.0,0.00052602,120]
[320992685,1711732259273,-500.0,0.00052602,120]
[320992686,1711732259283,-2231.03,0.00052602,120]
[320992687,1711732259292,-500.0,0.00052602,120]
[320992688,1711732259301,-7315.32,0.00052602,120]
[320992689,1711732259310,-1373.64,0.00052602,120]
[320992690,1711732259319,-3551.47,0.00052602,120]
[320992691,1711732259329,-500.0,0.00052602,120]
[320992692,1711732259338,-2890.11,0.00052602,120]
[320992693,1711732259347,-3514.04,0.00052602,120]
[320992694,1711732259356,-1573.34,0.00052602,120]
[320992695,1711732259366,-500.0,0.00052602,120]
[320992696,1711732259376,-3001.64,0.00052602,120]
[320992697,1711732259386,-500.0,0.00052602,120]
[320992698,1711732259395,-2751.01,0.00052602,120]
[320992699,1711732259405,-577.80636207,0.00052602,120]
[320992700,1711732259414,-500.0,0.00052602,120]
[320992701,1711732259424,-9275.15,0.00052602,120]
[320992702,1711732259433,-500.0,0.00052602,120]
[320992703,1711732259443,-500.0,0.00052602,120]
[320992704,1711732259452,-500.0,0.00052602,120]
[320992705,1711732259462,-3751.45,0.00052602,120]
[320992706,1711732259471,-797.83,0.00052602,120]
[320992707,1711732259481,-500.0,0.00052602,120]
[320992708,1711732259490,-706.51,0.00052602,120]
[320992709,1711732259500,-500.0,0.00052602,120]
[320992710,1711732259510,-1203.12,0.00052602,120]
[320992711,1711732259519,-2915.8,0.00052602,120]
[320992712,1711732259528,-592.77053852,0.00052602,120]
[320992713,1711732259538,-11829.29,0.00052602,120]
[320992714,1711732259547,-702.44,0.00052602,120]
[320992715,1711732259557,-1475.36,0.00052602,120]
[320992716,1711732259566,-500.0,0.00052602,120]
[320992717,1711732259576,-500.0,0.00052602,120]
[320992718,1711732259585,-725.78,0.00052602,120]
[320992719,1711732259594,-4876.82,0.00052602,120]
[320992720,1711732259604,-1899.07,0.00052602,120]
[320992721,1711732259613,-4287.28,0.00052602,120]
[320992722,1711732259622,-651.91,0.00052602,120]
[320992723,1711732259631,-500.0,0.00052602,120]
[320992724,1711732259641,-500.0,0.00052602,120]
[320992725,1711732259650,-500.0,0.00052602,120]
[320992726,1711732259659,-500.0,0.00052602,120]
[320992727,1711732259669,-500.0,0.00052602,120]
[320992728,1711732259678,-3462.31,0.00052602,120]
[320992729,1711732259688,-500.0,0.00052602,120]
[320992730,1711732259698,-500.0,0.00052602,120]
[320992731,1711732259707,-500.0,0.00052602,120]
[320992732,1711732259717,-531.84,0.00052602,120]
[320992733,1711732259726,-970.04,0.00052602,120]
[320992734,1711732259735,-500.0,0.00052602,120]
[320992735,1711732259745,-2146.07,0.00052602,120]
[320992736,1711732259756,-503.26,0.00052602,120]
[320992737,1711732259766,-546.78,0.00052602,120]
[320992738,1711732259775,-2298.97,0.00052602,120]
[320992739,1711732259785,-978.57,0.00052602,120]
[320992740,1711732259794,-3430.95,0.00052602,120]
[320992741,1711732259804,-500.0,0.00052602,120]
[320992742,1711732259814,-500.0,0.00052602,120]
[320992743,1711732259823,-1165.91,0.00052602,120]
[320992744,1711732259833,-4577.78,0.00052602,21]
[320992745,1711732259843,-656.94,0.00052602,120]
[320992746,1711732259853,-500.0,0.00052602,2]
[320992747,1711732259866,-152.0,0.00052611,3]
[320992748,1711732260061,-1000.0,0.00052612,120]
[320992749,1711732260071,-1000.0,0.00052658,120]
[320992750,1711732260081,-1000.0,0.00052705,120]
[320992751,1711732260090,-1000.0,0.00052751,120]
[320992752,1711732260099,-1000.0,0.00052798,120]
[320992753,1711732260108,-180.8,0.00052822,120]
[320992754,1711732260118,-152.66585958,0.00052824,55]
[320992755,1711732260127,-1000.0,0.00052844,120]
[320992756,1711732260136,-3346.66621381,0.00052876,4]
[320992757,1711732260146,-10413.46640118,0.00052876,5]
[320992758,1711732260156,-511.81042472,0.00052876,120]
[320992759,1711732260166,-500.0,0.00052876,120]
[320992760,1711732260175,-500.0,0.00052876,120]
[320992761,1711732260184,-500.0,0.00052876,120]
[320992762,1711732260193,-500.0,0.00052876,120]
[320992763,1711732260204,-500.0,0.00052876,120]
[320992764,1711732260216,-155.46,0.00052876,15]
[320992765,1711732260226,-500.0,0.00052876,120]
[320992766,1711732260235,-500.0,0.00052876,120]
[320992767,1711732260244,-500.0,0.00052876,120]
[320992768,1711732260255,-500.0,0.00052876,120]
[320992769,1711732260265,-500.0,0.00052876,120]
[320992770,1711732260275,-500.0,0.00052876,120]
[320992771,1711732260284,-500.0,0.00052876,120]
[320992772,1711732260294,-500.0,0.00052876,120]
[320992773,1711732260304,-500.0,0.00052876,120]
[320992774,1711732260314,-500.0,0.00052876,120]
[320992775,1711732260324,-500.0,0.00052876,120]
[320992776,1711732260333,-526.86529362,0.00052876,120]
[320992777,1711732260343,-500.0,0.00052876,120]
[320992778,1711732260353,-500.0,0.00052876,120]
[320992779,1711732260363,-500.0,0.00052876,120]
[320992780,1711732260373,-500.0,0.00052876,120]
[320992781,1711732260382,-500.0,0.00052876,120]
[320992782,1711732260392,-649.68573644,0.00052876,120]
[320992783,1711732260401,-500.0,0.00052876,120]
[320992784,1711732260410,-500.0,0.00052876,120]
[320992785,1711732260419,-212.45,0.00052876,120]
[320992786,1711732260428,-500.0,0.00052876,120]
[320992787,1711732260437,-500.0,0.00052876,120]
[320992788,1711732260447,-500.0,0.00052876,120]
[320992789,1711732260459,-500.0,0.00052876,120]
[320992790,1711732260468,-500.0,0.00052876,120]
[320992791,1711732260478,-500.0,0.00052876,120]
[320992792,1711732260487,-500.0,0.00052876,120]
[320992793,1711732260498,-500.0,0.00052876,120]
[320992794,1711732260508,-500.0,0.00052876,2]
[320992795,1711732260517,-500.0,0.00052876,120]
[320992796,1711732260527,-557.74,0.00052876,120]
[320992797,1711732260536,-500.0,0.00052876,120]
[320992798,1711732260545,-500.0,0.00052876,120]
[320992799,1711732260554,-500.0,0.00052876,120]
[320992800,1711732260563,-500.0,0.00052876,120]
[320992801,1711732260573,-500.0,0.00052876,120]
[320992802,1711732260582,-191.85,0.00052876,120]
[320992803,1711732260592,-671.55,0.00052876,120]
[320992804,1711732260601,-427.6,0.00052876,120]
[320992805,1711732260610,-500.0,0.00052876,120]
[320992806,1711732260620,-316.39,0.00052876,120]
[320992807,1711732260630,-500.0,0.00052876,120]
[320992808,1711732260640,-301.01510025,0.00052876,120]
[320992809,1711732260650,-500.0,0.00052876,120]
[320992810,1711732260659,-541.27069194,0.00052876,120]
[320992811,1711732260669,-997.84,0.00052876,120]
[320992812,1711732260679,-500.0,0.00052876,120]
[320992813,1711732260688,-343.75351248,0.00052876,120]
[320992814,1711732260698,-215.71,0.00052876,120]
[320992815,1711732260708,-500.0,0.00052876,120]
[320992816,1711732260718,-533.61,0.00052876,120]
[320992817,1711732260727,-500.0,0.00052876,120]
[320992818,1711732260737,-500.0,0.00052876,120]
[320992819,1711732260748,-500.0,0.00052876,120]
[320992820,1711732260761,-500.0,0.00052876,120]
[320992821,1711732260770,-500.0,0.00052876,120]
[320992822,1711732260780,-318.60953987,0.00052876,120]
[320992823,1711732260790,-500.0,0.00052876,120]
[320992824,1711732260799,-500.0,0.00052876,120]
[320992825,1711732260809,-500.0,0.00052876,120]
[320992826,1711732260818,-345.24,0.00052876,120]
[320992827,1711732260828,-595.70149333,0.00052876,120]
[320992828,1711732260837,-500.0,0.00052876,120]
[320992829,1711732260847,-500.0,0.00052876,120]
[320992830,1711732260858,-665.65,0.00052876,120]
[320992831,1711732260870,-500.0,0.00052876,120]
[320992832,1711732260881,-500.0,0.00052876,120]
[320992833,1711732260890,-500.0,0.00052876,120]
[320992834,1711732260901,-500.0,0.00052876,120]
[320992835,1711732260910,-546.22,0.00052876,120]
[320992836,1711732260920,-666.0,0.00052876,120]
[320992837,1711732260931,-500.0,0.00052876,120]
[320992838,1711732260942,-500.0,0.00052876,7]
[320992839,1711732260952,-507.49,0.00052876,120]
[320992840,1711732260962,-500.0,0.00052876,120]
[320992841,1711732260972,-500.0,0.00052876,120]
[320992842,1711732260981,-534.0,0.00052876,120]
[320992843,1711732260991,-413.62730342,0.00052876,120]
[320992844,1711732261002,-500.0,0.00052876,120]
[320992845,1711732261011,-500.0,0.00052876,120]
[320992846,1711732261021,-438.32298265,0.00052876,120]
[320992847,1711732261030,-500.0,0.00052876,120]
[320992848,1711732261040,-500.0,0.00052876,120]
[320992849,1711732261050,-500.0,0.00052876,120]
[320992850,1711732261059,-500.0,0.00052876,120]
[320992851,1711732261069,-500.0,0.00052876,120]
[320992852,1711732261078,-500.0,0.00052876,120]
[320992853,1711732261088,-576.82146032,0.00052876,120]
[320992854,1711732261097,-500.0,0.00052876,120]
[320992855,1711732261107,-500.0,0.00052876,120]
[320992856,1711732261116,-500.0,0.00052876,120]
[320992857,1711732261125,-500.0,0.00052876,120]
[320992858,1711732261134,-500.0,0.00052876,120]
[320992859,1711732261143,-500.0,0.00052876,120]
[320992860,1711732261152,-500.0,0.00052876,120]
[320992861,1711732261162,-500.0,0.00052876,120]
[320992862,1711732261171,-500.0,0.00052876,120]
[320992863,1711732261180,-500.0,0.00052876,120]
[320992864,1711732261189,-500.0,0.00052876,120]
[320992865,1711732261198,-500.0,0.00052876,120]
[320992866,1711732261207,-500.0,0.00052876,120]
[320992867,1711732261216,-500.0,0.00052876,120]
[320992868,1711732261225,-500.0,0.00052876,120]
[320992869,1711732261234,-520.26,0.00052876,120]
[320992870,1711732261243,-1906.05,0.00052876,120]
[320992871,1711732261254,-500.0,0.00052876,120]
[320992872,1711732261264,-500.0,0.00052876,120]
[320992873,1711732261273,-500.0,0.00052876,120]
[320992874,1711732261283,-500.0,0.00052876,120]
[320992875,1711732261293,-500.0,0.00052876,120]
[320992876,1711732261303,-500.0,0.00052876,120]
[320992877,1711732261314,-500.0,0.00052876,120]
[320992878,1711732261323,-500.0,0.00052876,120]
[320992879,1711732261333,-500.0,0.00052876,120]
[320992880,1711732261343,-506.13676818,0.00052876,120]
[320992881,1711732261353,-500.0,0.00052876,120]
[320992882,1711732261363,-554.4740028,0.00052876,120]
[320992883,1711732261373,-500.0,0.00052876,120]
[320992884,1711732261382,-500.0,0.00052876,120]
[320992885,1711732261391,-500.0,0.00052876,120]
[320992886,1711732261401,-500.0,0.00052876,120]
[320992887,1711732261410,-500.0,0.00052876,120]
[320992888,1711732261419,-184.87,0.00052876,120]
[320992889,1711732261429,-500.0,0.00052876,2]
[320992890,1711732261438,-500.0,0.00052876,120]
[320992891,1711732261447,-500.0,0.00052876,120]
[320992892,1711732261457,-500.0,0.00052876,2]
[320992893,1711732261466,-500.0,0.00052876,120]
[320992894,1711732261476,-500.0,0.00052876,120]
[320992895,1711732261485,-500.0,0.00052876,120]
[320992896,1711732261494,-500.0,0.00052876,120]
[320992897,1711732261505,-500.0,0.00052876,120]
[320992898,1711732261514,-500.0,0.00052876,120]
[320992899,1711732261523,-500.0,0.00052876,120]
[320992900,1711732261533,-684.29,0.00052876,120]
[320992901,1711732261542,-500.0,0.00052876,120]
[320992902,1711732261552,-500.0,0.00052876,120]
[320992903,1711732261561,-500.0,0.00052876,120]
[320992904,1711732261571,-539.83,0.00052876,120]
[320992905,1711732261580,-500.0,0.00052876,120]
[320992906,1711732261589,-500.0,0.00052876,120]
[320992907,1711732261599,-500.0,0.00052876,120]
[320992908,1711732261609,-500.0,0.00052876,120]
[320992909,1711732261619,-373.63582265,0.00052876,120]
[320992910,1711732261629,-500.0,0.00052876,120]
[320992911,1711732261638,-500.0,0.00052876,120]
[320992912,1711732261648,-500.0,0.00052876,120]
[320992913,1711732261658,-1706.14,0.00052876,120]
[320992914,1711732261668,-566.01420755,0.00052876,120]
[320992915,1711732261678,-500.0,0.00052876,120]
[320992916,1711732261688,-959.73,0.00052876,120]
[320992917,1711732261697,-211.22,0.00052876,120]
[320992918,1711732261707,-500.0,0.00052876,120]
[320992919,1711732261716,-500.0,0.00052876,120]
[320992920,1711732261725,-500.0,0.00052876,120]
[320992921,1711732261734,-7887.7,0.00052876,120]
[320992922,1711732261744,-500.0,0.00052876,120]
[320992923,1711732261757,-540.13,0.00052876,120]
[320992924,1711732261767,-500.0,0.00052876,120]
[320992925,1711732261777,-500.0,0.00052876,120]
[320992926,1711732261786,-1600.31,0.00052876,120]
[320992927,1711732261796,-868.17,0.00052876,120]
[320992928,1711732261805,-500.0,0.00052876,120]
[320992929,1711732261815,-583.92,0.00052876,120]
[320992930,1711732261824,-500.0,0.00052876,120]
[320992931,1711732261834,-500.0,0.00052876,120]
[320992932,1711732261843,-500.0,0.00052876,120]
[320992933,1711732261853,-500.0,0.00052876,120]
[320992934,1711732261865,-500.0,0.00052876,120]
[320992935,1711732261876,-500.0,0.00052876,120]
[320992936,1711732261886,-500.0,0.00052876,120]
[320992937,1711732261896,-500.0,0.00052876,120]
[320992938,1711732261907,-666.09,0.00052876,120]
[320992939,1711732261917,-500.0,0.00052876,120]
[320992940,1711732261927,-2866.09,0.00052876,120]
[320992941,1711732261937,-501.42,0.00052876,120]
[320992942,1711732261949,-500.0,0.00052876,120]
[320992943,1711732261960,-695.15,0.00052876,120]
[320992944,1711732261970,-4227.5,0.00052876,120]
[320992945,1711732261980,-500.0,0.00052876,120]
[320992946,1711732261990,-249.14074414,0.00052876,120]
[320992947,1711732262003,-639.06,0.00052876,120]
[320992948,1711732262013,-5650.1,0.00052876,120]
[320992949,1711732262022,-16788.45,0.00052876,120]
[320992950,1711732262032,-500.0,0.00052876,120]
[320992951,1711732262041,-504.67027867,0.00052876,7]
[320992952,1711732262051,-500.0,0.00052876,120]
[320992953,1711732262061,-500.0,0.00052876,120]
[320992954,1711732262070,-3741.11,0.00052876,120]
[320992955,1711732262079,-4021.4,0.00052876,120]
[320992956,1711732262089,-2018.41,0.00052876,120]
[320992957,1711732262098,-1018.15,0.00052876,120]
[320992958,1711732262107,-500.0,0.00052876,120]
[320992959,1711732262117,-500.0,0.00052876,120]
[320992960,1711732262126,-2719.17,0.00052876,120]
[320992961,1711732262137,-500.0,0.00052876,120]
[320992962,1711732262146,-500.0,0.00052876,120]
[320992963,1711732262156,-2275.1,0.00052876,120]
[320992964,1711732262165,-1055.56,0.00052876,120]
[320992965,1711732262175,-500.0,0.00052876,120]
[320992966,1711732262185,-3101.43,0.00052876,120]
[320992967,1711732262194,-500.0,0.00052876,120]
[320992968,1711732262204,-500.0,0.00052876,120]
[320992969,1711732262213,-3715.44,0.00052876,120]
[320992970,1711732262222,-500.0,0.00052876,120]
[320992971,1711732262232,-500.0,0.00052876,120]
[320992972,1711732262241,-500.0,0.00052876,120]
[320992973,1711732262253,-4247.9,0.00052876,120]
[320992974,1711732262263,-892.02,0.00052876,120]
[320992975,1711732262272,-1042.94,0.00052876,120]
[320992976,1711732262281,-500.0,0.00052876,120]
[320992977,1711732262290,-500.0,0.00052876,120]
[320992978,1711732262299,-500.0,0.00052876,120]
[320992979,1711732262308,-1509.93,0.00052876,120]
[320992980,1711732262317,-830.5,0.00052876,120]
[320992981,1711732262327,-500.0,0.00052876,120]
[320992982,1711732262335,-613.02,0.00052876,120]
[320992983,1711732262345,-1724.86,0.00052876,120]
[320992984,1711732262409,-548.63320981,0.00052876,120]
[320992985,1711732262419,-361.83453898,0.00052876,120]
[320992986,1711732262428,-500.0,0.00052876,120]
[320992987,1711732262438,-905.36,0.00052876,120]
[320992988,1711732262451,-500.0,0.00052876,120]
[320992989,1711732262467,-623.53,0.00052876,120]
[320992990,1711732262477,-802.8,0.00052876,120]
[320992991,1711732262486,-543.31,0.00052876,120]
[320992992,1711732262496,-500.0,0.00052876,120]
[320992993,1711732262509,-1090.75,0.00052876,120]
[320992994,1711732262518,-500.0,0.00052876,120]
[320992995,1711732262528,-746.52,0.00052876,120]
[320992996,1711732262537,-826.13,0.00052876,120]
[320992997,1711732262546,-500.0,0.00052876,120]
[320992998,1711732262555,-567.02,0.00052876,120]
[320992999,1711732262565,-500.0,0.00052876,120]
[320993000,1711732262574,-727.16,0.00052876,120]
[320993001,1711732262584,-524.42,0.00052876,120]
[320993002,1711732262593,-3533.95,0.00052876,120]
[320993003,1711732262603,-678.08,0.00052876,120]
[320993004,1711732262613,-1640.68,0.00052876,120]
[320993005,1711732262624,-599.54,0.00052876,120]
[320993006,1711732262634,-823.88,0.00052876,120]
[320993007,1711732262644,-746.65,0.00052876,120]
[320993008,1711732262654,-1247.6,0.00052876,120]
[320993009,1711732262665,-500.0,0.00052876,80]
[320993010,1711732262685,-2016.02,0.00052876,120]
[320993011,1711732262695,-232.63,0.00052876,120]
[320993012,1711732262705,-1049.64,0.00052876,120]
[320993013,1711732262714,-500.0,0.00052876,120]
[320993014,1711732262723,-842.24,0.00052876,120]
[320993015,1711732262733,-2897.64,0.00052876,120]
[320993016,1711732262742,-500.0,0.00052876,120]
[320993017,1711732262754,-637.97,0.00052876,120]
[320993018,1711732262763,-662.85,0.00052876,120]
[320993019,1711732262772,-500.0,0.00052876,120]
[320993020,1711732262781,-515.79,0.00052876,120]
[320993021,1711732262790,-500.0,0.00052876,120]
[320993022,1711732262799,-1329.88,0.00052876,120]
[320993023,1711732262809,-3024.4,0.00052876,120]
[320993024,1711732262818,-500.0,0.00052876,120]
[320993025,1711732262827,-897.89,0.00052876,120]
[320993026,1711732262837,-500.0,0.00052876,120]
[320993027,1711732262847,-1703.04,0.00052876,120]
[320993028,1711732262857,-500.0,0.00052876,120]
[320993029,1711732262870,-2522.14,0.00052876,120]
[320993030,1711732262879,-5409.47,0.00052876,120]
[320993031,1711732262888,-500.0,0.00052876,120]
[320993032,1711732262898,-500.0,0.00052876,120]
[320993033,1711732262908,-643.87,0.00052876,120]
[320993034,1711732262917,-1537.3,0.00052876,120]
[320993035,1711732262926,-500.0,0.00052876,120]
[320993036,1711732262935,-1064.6,0.00052876,120]
[320993037,1711732262946,-500.0,0.00052876,120]
[320993038,1711732262955,-532.63,0.00052876,120]
[320993039,1711732262964,-500.0,0.00052876,120]
[320993040,1711732262973,-1623.67,0.00052876,120]
[320993041,1711732262982,-694.49,0.00052876,120]
[320993042,1711732262991,-862.3,0.00052876,120]
[320993043,1711732263004,-3565.13,0.00052876,120]
[320993044,1711732263013,-500.0,0.00052876,60]
[320993045,1711732263022,-2312.51,0.00052876,120]
[320993046,1711732263032,-1378.2,0.00052876,120]
[320993047,1711732263042,-2825.19,0.00052876,120]
[320993048,1711732263052,-1908.96,0.00052876,120]
[320993049,1711732263062,-384.88852701,0.00052876,120]
[320993050,1711732263071,-500.0,0.00052876,120]
[320993051,1711732263080,-3067.75,0.00052876,120]
[320993052,1711732263089,-1505.23,0.00052876,120]
[320993053,1711732263097,-500.0,0.00052876,120]
[320993054,1711732263106,-693.2,0.00052876,120]
[320993055,1711732263115,-618.84,0.00052876,120]
[320993056,1711732263125,-500.0,0.00052876,120]
[320993057,1711732263134,-500.0,0.00052876,120]
[320993058,1711732263143,-500.0,0.00052876,120]
[320993059,1711732263152,-2231.03,0.00052876,120]
[320993060,1711732263162,-500.0,0.00052876,120]
[320993061,1711732263171,-7315.32,0.00052876,120]
[320993062,1711732263181,-1373.64,0.00052876,120]
[320993063,1711732263190,-3551.47,0.00052876,120]
[320993064,1711732263199,-500.0,0.00052876,120]
[320993065,1711732263208,-2890.11,0.00052876,120]
[320993066,1711732263217,-3514.04,0.00052876,120]
[320993067,1711732263226,-500.0,0.00052876,120]
[320993068,1711732263235,-3001.64,0.00052876,120]
[320993069,1711732263244,-500.0,0.00052876,120]
[320993070,1711732263256,-2751.01,0.00052876,120]
[320993071,1711732263266,-500.0,0.00052876,120]
[320993072,1711732263276,-9275.15,0.00052876,120]
[320993073,1711732263286,-500.0,0.00052876,120]
[320993074,1711732263295,-500.0,0.00052876,120]
[320993075,1711732263305,-3751.45,0.00052876,120]
[320993076,1711732263314,-358.83974314,0.00052876,120]
[320993077,1711732263323,-797.83,0.00052876,120]
[320993078,1711732263332,-500.0,0.00052876,120]
[320993079,1711732263342,-706.51,0.00052876,120]
[320993080,1711732263351,-539.37732361,0.00052876,120]
[320993081,1711732263361,-1203.12,0.00052876,120]
[320993082,1711732263370,-2915.8,0.00052876,120]